fUSD/lending_fUSD_20251231
["ID","MTS","AMOUNT","RATE_DAILY","PERIOD"]
[400175038,1767169841440,-246.33,0.0001439,2]
[400175040,1767169841451,-3348.00485715,0.0001439,2]
[400175042,1767169841460,-268.35813948,0.00014467,2]
[400175044,1767169841470,-4596.55,0.00014711,2]
[400175046,1767169841480,-2161.99152479,0.00014727,2]
[400175048,1767169841490,-2063.07,0.00014963,2]
[400175050,1767169841499,-216.16,0.00014993,2]
[400175052,1767169841509,-464.89029285,0.00014999,2]
[400175054,1767169841520,-22942.37968616,0.00015,2]
[400175056,1767169841529,-27491.8828849,0.00015042,2]
[400175058,1767169841539,-168.0,0.00015048,2]
[400175060,1767169841549,-222.31,0.00015055,2]
[400175062,1767169841558,-2161.99152479,0.00015162,2]
[400175064,1767169841568,-433.0,0.0001519,2]
[400175067,1767169841582,-1517.64,0.000153,2]
[400175069,1767169841592,-168.0,0.00015304,2]
[400175071,1767169841601,-506.50076921,0.000154,2]
[400175073,1767169841611,-168.0,0.00015426,2]
[400175075,1767169841622,-587.0,0.00015499,2]
[400175077,1767169841635,-6134.2682309,0.00015502,2]
[400175079,1767169841646,-3462.0,0.00015527,2]
[400175081,1767169841655,-1328.0,0.00015527,2]
[400175083,1767169841665,-1000.0,0.00015553,2]
[400175085,1767169841675,-156.7055391,0.00015562,2]
[400175087,1767169841685,-2351.0,0.0001559,2]
[400175089,1767169841695,-2161.99152479,0.00015596,2]
[400175092,1767169841716,-2063.07,0.00015676,2]
[400175094,1767169841726,-168.0,0.00015681,2]
[400175096,1767169841736,-168.0,0.00015724,2]
[400175097,1767169841747,-1600.0,0.00015737,2]
[400175100,1767169841757,-1264.0,0.00015792,2]
[400175102,1767169841766,-432.0,0.00015792,2]
[400175104,1767169841776,-913.0,0.00015792,2]
[400175106,1767169841785,-1199.0,0.00015792,2]
[400175108,1767169841796,-2045.05502519,0.00015807,2]
[400175110,1767169841806,-1315.32506376,0.000159,2]
[400175112,1767169841815,-500.0,0.00015973,2]
[400175114,1767169841825,-500.0,0.00015973,2]
[400175116,1767169841835,-503.35008282,0.00015973,2]
[400175118,1767169841845,-500.73461727,0.00015973,2]
[400175120,1767169841854,-505.32038766,0.00015973,2]
[400175122,1767169841863,-500.0,0.00015973,2]
[400175124,1767169841873,-501.59465495,0.00015973,2]
[400175126,1767169841882,-500.0,0.00015973,2]
[400175128,1767169841892,-159.99837724,0.0001599,2]
[400175130,1767169841903,-3905.46183899,0.00016,2]
[400175132,1767169841912,-331924.88251854,0.00016,4]
[400175134,1767169841922,-2161.99152479,0.00016031,2]
[400175136,1767169841932,-168.0,0.00016079,2]
[400175138,1767169841941,-168.0,0.00016113,2]
[400175140,1767169841951,-4486.89,0.00016116,2]
[400175142,1767169841960,-168.0,0.00016147,2]
[400175144,1767169841970,-23934.81968506,0.000162,5]
[400175146,1767169841984,-168.0,0.00016212,2]
[400175149,1767169841994,-151.0,0.00016346,2]
[400175151,1767169842004,-151.0,0.00016346,2]
[400175153,1767169842013,-151.0,0.00016346,2]
[400175154,1767169842022,-151.0,0.00016346,2]
[400175157,1767169842032,-151.0,0.00016377,2]
[400175159,1767169842041,-151.0,0.00016377,2]
[400175161,1767169842051,-2063.07,0.00016388,2]
[400175163,1767169842060,-151.0,0.00016401,2]
[400175165,1767169842070,-151.0,0.00016401,2]
[400175167,1767169842080,-2368.0,0.00016438,2]
[400175169,1767169842090,-220.38,0.00016438,2]
[400175171,1767169842100,-1136.14575916,0.00016438,2]
[400175173,1767169842111,-1136.14575916,0.00016438,2]
[400175175,1767169842121,-1136.14575916,0.00016438,2]
[400175177,1767169842130,-1136.14575916,0.00016438,2]
[400175179,1767169842140,-1136.14575916,0.00016438,2]
[400175181,1767169842149,-1136.14575916,0.00016438,2]
[400175183,1767169842158,-1136.14575916,0.00016438,2]
[400175185,1767169842168,-1136.14575916,0.00016438,2]
[400175187,1767169842178,-1136.14575916,0.00016438,2]
[400175189,1767169842187,-1136.14575916,0.00016438,2]
[400175191,1767169842196,-1136.14575916,0.00016438,2]
[400175193,1767169842205,-1136.14575916,0.00016438,2]
[400175195,1767169842215,-1136.14575916,0.00016438,2]
[400175197,1767169842225,-1136.14575916,0.00016438,2]
[400175199,1767169842235,-1136.14575916,0.00016438,2]
[400175201,1767169842244,-1136.14575916,0.00016438,2]
[400175203,1767169842253,-1136.14575916,0.00016438,2]
[400175205,1767169842262,-1136.14575916,0.00016438,2]
[400175207,1767169842272,-1136.14575916,0.00016438,2]
[400175209,1767169842282,-1136.14575916,0.00016438,2]
[400175211,1767169842292,-1136.14575916,0.00016438,2]
[400175213,1767169842302,-1136.14575916,0.00016438,2]
[400175215,1767169842311,-1136.14575916,0.00016438,2]
[400175217,1767169842321,-1136.14575916,0.00016438,2]
[400175219,1767169842331,-1136.14575916,0.00016438,2]
[400175221,1767169842344,-1136.14575916,0.00016438,2]
[400175223,1767169842355,-1136.14575916,0.00016438,2]
[400175226,1767169842364,-1136.14575916,0.00016438,2]
[400175227,1767169842374,-1136.14575916,0.00016438,2]
[400175229,1767169842383,-1136.14575916,0.00016438,2]
[400175232,1767169842393,-1136.14575916,0.00016438,2]
[400175234,1767169842403,-1136.14575916,0.00016438,2]
[400175236,1767169842412,-1136.14575916,0.00016438,2]
[400175238,1767169842422,-1136.14575916,0.00016438,2]
[400175240,1767169842431,-1136.14575916,0.00016438,2]
[400175242,1767169842441,-1136.14575916,0.00016438,2]
[400175244,1767169842453,-1136.14575916,0.00016438,2]
[400175246,1767169842463,-1136.14575916,0.00016438,2]
[400175248,1767169842473,-1136.14575916,0.00016438,2]
[400175250,1767169842483,-1136.14575916,0.00016438,2]
[400175252,1767169842493,-1136.14575916,0.00016438,2]
[400175254,1767169842503,-1136.14575916,0.00016438,2]
[400175256,1767169842512,-1136.14575916,0.00016438,2]
[400175258,1767169842522,-1136.14575916,0.00016438,2]
[400175260,1767169842532,-1136.14575916,0.00016438,2]
[400175262,1767169842546,-1136.14575916,0.00016438,2]
[400175264,1767169842556,-1136.14575916,0.00016438,2]
[400175266,1767169842566,-1136.14575916,0.00016438,2]
[400175268,1767169842576,-1136.14575916,0.00016438,2]
[400175270,1767169842586,-1136.14575916,0.00016438,2]
[400175272,1767169842596,-1136.14575916,0.00016438,2]
[400175274,1767169842606,-1136.14575916,0.00016438,2]
[400175276,1767169842615,-1136.14575916,0.00016438,2]
[400175278,1767169842628,-11578.58,0.00016438,2]
[400175280,1767169842642,-2161.99152479,0.00016465,2]
[400175282,1767169842652,-736.0,0.00016504,2]
[400175284,1767169842661,-498.98924961,0.00016521,2]
[400175286,1767169842674,-1000.0,0.00016521,2]
[400175288,1767169842683,-1000.0,0.00016521,2]
[400175290,1767169842692,-393.71970233,0.00016521,2]
[400175292,1767169842703,-195.8112057,0.0001666,2]
[400175294,1767169842713,-220.38,0.00016712,2]
[400175296,1767169842723,-200.0,0.00016864,2]
[400175297,1767169842733,-176.88751953,0.00016873,2]
[400175298,1767169842743,-176.88751952,0.00016887,2]
[400175299,1767169842756,-176.88751952,0.000169,2]
[400175300,1767169842766,-2161.99152479,0.000169,2]
[400175301,1767169842775,-341.34054317,0.000169,2]
[400175302,1767169842786,-1140.0480697,0.000169,2]
[400175303,1767169842796,-4026.50033618,0.000169,2]
[400175304,1767169842806,-5468.48331673,0.000169,2]
[400175305,1767169842816,-5242.50694341,0.000169,2]
[400175306,1767169842826,-156.7055391,0.000169,2]
[400175307,1767169842836,-3238.71020797,0.000169,2]
[400175308,1767169842846,-5486.4411723,0.000169,2]
[400175310,1767169842856,-7974.63995796,0.000169,2]
[400175312,1767169842865,-500.0,0.00016973,2]
[400175314,1767169842875,-500.0,0.00016973,2]
[400175316,1767169842884,-162.29676587,0.00016973,2]
[400175318,1767169842894,-500.0,0.00016973,2]
[400175320,1767169842904,-162.62949941,0.00016973,2]
[400175323,1767169842913,-500.0,0.00016973,2]
[400175325,1767169842923,-500.0,0.00016973,2]
[400175327,1767169842934,-453.14856339,0.00016973,2]
[400175329,1767169842944,-500.0,0.00016973,2]
[400175331,1767169842955,-519.646537,0.00016973,2]
[400175333,1767169842965,-500.0,0.00016973,2]
[400175335,1767169842976,-500.60403875,0.00016973,2]
[400175337,1767169842985,-501.35455747,0.00016973,2]
[400175339,1767169842995,-500.0,0.00016973,2]
[400175341,1767169843006,-500.0,0.00016973,2]
[400175343,1767169843016,-500.0,0.00016973,2]
[400175345,1767169843026,-500.0,0.00016973,2]
[400175347,1767169843035,-501.00189818,0.00016973,2]
[400175349,1767169843046,-556.81874578,0.00016973,2]
[400175353,1767169843056,-500.0,0.00016973,2]
[400175356,1767169843065,-500.0,0.00016973,2]
[400175358,1767169843075,-162.50883671,0.00016973,2]
[400175361,1767169843085,-571.16127303,0.00016973,2]
[400175364,1767169843095,-335.11797254,0.00016973,2]
[400175366,1767169843105,-500.0,0.00016973,2]
[400175369,1767169843114,-640.49953855,0.00016973,2]
[400175373,1767169843134,-500.0,0.00016973,2]
[400175375,1767169843148,-500.0,0.00016973,2]
[400175378,1767169843157,-500.0,0.00016973,2]
[400175380,1767169843168,-550.00207661,0.00016973,2]
[400175382,1767169843178,-500.0,0.00016973,2]
[400175384,1767169843188,-500.0,0.00016973,2]
[400175386,1767169843199,-427.40368537,0.00016973,2]
[400175388,1767169843210,-500.0,0.00016973,2]
[400175390,1767169843219,-500.0,0.00016973,2]
[400175392,1767169843229,-500.0,0.00016973,2]
[400175394,1767169843239,-500.0,0.00016973,2]
[400175396,1767169843250,-500.0,0.00016973,2]
[400175398,1767169843260,-500.0,0.00016973,2]
[400175400,1767169843270,-500.0,0.00016973,2]
[400175402,1767169843280,-160.43167139,0.00016973,2]
[400175404,1767169843290,-156.77400144,0.00016973,2]
[400175407,1767169843300,-500.0,0.00016973,2]
[400175409,1767169843310,-500.0,0.00016973,2]
[400175411,1767169843320,-160.43464258,0.00016973,2]
[400175413,1767169843330,-160.40025967,0.00016973,2]
[400175415,1767169843340,-150.4025269,0.00016973,2]
[400175417,1767169843350,-160.43301019,0.00016973,2]
[400175419,1767169843359,-160.40696499,0.00016973,2]
[400175421,1767169843369,-160.42561905,0.00016973,2]
[400175423,1767169843379,-500.0,0.00016973,2]
[400175425,1767169843388,-160.4337152,0.00016973,2]
[400175427,1767169843398,-160.40600151,0.00016973,2]
[400175429,1767169843407,-150.1570918,0.00016973,2]
[400175431,1767169843417,-500.0,0.00016973,2]
[400175433,1767169843427,-500.0,0.00016973,2]
[400175435,1767169843436,-500.0,0.00016973,2]
[400175437,1767169843446,-396.18408407,0.00016973,2]
[400175439,1767169843456,-500.0,0.00016973,2]
[400175441,1767169843466,-509.92461485,0.00016973,2]
[400175443,1767169843477,-159.68383532,0.00016973,2]
[400175446,1767169843491,-500.0,0.00016973,2]
[400175448,1767169843502,-500.0,0.00016973,2]
[400175450,1767169843512,-500.0,0.00016973,2]
[400175452,1767169843522,-500.0,0.00016973,2]
[400175454,1767169843532,-220.61613602,0.00016973,2]
[400175456,1767169843542,-207.79365149,0.00016973,2]
[400175458,1767169843553,-500.0,0.00016973,2]
[400175460,1767169843563,-167.17790449,0.00016973,2]
[400175462,1767169843573,-500.0,0.00016973,2]
[400175464,1767169843582,-500.0,0.00016973,2]
[400175466,1767169843592,-501.7651244,0.00016973,2]
[400175469,1767169843602,-500.0,0.00016973,2]
[400175471,1767169843612,-500.0,0.00016973,2]
[400175473,1767169843623,-469.2844286,0.00016973,2]
[400175475,1767169843637,-161.33309619,0.00016973,2]
[400175477,1767169843647,-500.0,0.00016973,2]
[400175479,1767169843657,-500.0,0.00016973,2]
[400175481,1767169843669,-500.0,0.00016973,2]
[400175483,1767169843679,-500.0,0.00016973,2]
[400175485,1767169843689,-517.17751083,0.00016973,2]
[400175487,1767169843699,-500.0,0.00016973,2]
[400175489,1767169843709,-500.0,0.00016973,2]
[400175491,1767169843720,-523.82155928,0.00016973,2]
[400175493,1767169843730,-500.0,0.00016973,2]
[400175495,1767169843741,-500.0,0.00016973,2]
[400175497,1767169843751,-506.98216206,0.00016973,2]
[400175499,1767169843761,-500.0,0.00016973,2]
[400175501,1767169843771,-500.0,0.00016973,2]
[400175504,1767169843781,-374.93803347,0.00016973,2]
[400175506,1767169843791,-200.2041015,0.00016983,2]
[400175508,1767169843801,-220.38,0.00016986,2]
[400175510,1767169843810,-150.0,0.0001699,2]
[400175512,1767169843821,-159.99837724,0.0001699,2]
[400175514,1767169843831,-284121.8839343,0.00016999,2]
[400175516,1767169843842,-467.19773594,0.00016999,2]
[400175518,1767169843857,-567.50706892,0.00016999,2]
[400175521,1767169843867,-300.0,0.00016999,2]
[400175523,1767169843877,-300.0,0.00016999,2]
[400175525,1767169843886,-300.0,0.00016999,2]
[400175527,1767169843897,-300.0,0.00016999,2]
[400175528,1767169843907,-681.43055394,0.00016999,2]
[400175530,1767169843917,-300.0,0.00016999,2]
[400175532,1767169843927,-666.0,0.00016999,2]
[400175534,1767169843936,-2218.60438038,0.00016999,2]
[400175537,1767169843947,-823.0,0.00016999,2]
[400175539,1767169843956,-2041520.32460643,0.00017,2]
[400175736,1767169845958,-1.7e-07,0.00017,2]
[400175751,1767169846084,1664.91141188,0.00012787,2]
[400175793,1767169846411,-613.0,0.00015527,2]
[400175795,1767169846422,-26127.53155755,0.00017,2]
[400175812,1767169846575,-4185.18066026,0.00017,2]
[400175814,1767169846587,-2386.97270748,0.00017,2]
[400175820,1767169846631,-1664.91141179,0.00013244,2]
[400175821,1767169846644,-5751.03566707,0.00017,2]
[400175824,1767169846657,-332.818322,0.00017,2]
[400176114,1767169862156,500.0,0.00043196,120]
[400176126,1767169873674,151.0,0.00043196,30]
[400176136,1767169921359,300.0,0.00012884,2]
[400176143,1767169930462,200.0,0.00043196,120]
[400176145,1767169932625,151.0,0.00043196,120]
[400176150,1767169940244,500.0,0.00043196,120]
[400176156,1767169981324,300.0,0.00012884,2]
[400176157,1767169983208,150.0,0.00012884,2]
[400176158,1767169983306,226.94531392,0.00012884,2]
[400176159,1767169984393,500.0,0.00012884,2]
[400176160,1767169984465,500.0,0.00012884,2]
[400176161,1767169984552,500.0,0.00012884,2]
[400176162,1767169984630,500.0,0.00012884,2]
[400176163,1767169984707,500.0,0.00012884,2]
[400176164,1767169984782,500.0,0.00012884,2]
[400176165,1767169985030,475.7030702,0.00012884,2]
[400176166,1767169985076,24.2969298,0.00012884,2]
[400176167,1767169985151,500.0,0.00012884,2]
[400176168,1767169985217,500.0,0.00012884,2]
[400176169,1767169985285,500.0,0.00012884,2]
[400176170,1767169985391,500.0,0.00012884,2]
[400176171,1767169985453,500.0,0.00012884,2]
[400176172,1767169985529,500.0,0.00012884,2]
[400176173,1767169985618,500.0,0.00012884,2]
[400176174,1767169985699,500.0,0.00012884,2]
[400176175,1767169985766,567.6438532,0.00012884,2]
[400176176,1767169985839,500.0,0.00012884,2]
[400176177,1767169988425,151.0,0.00043196,120]
[400176178,1767170000126,907.99108783,0.00012785,2]
[400176179,1767170026487,396.06816352,0.00012884,2]
[400176184,1767170042542,168.03937802,0.00012785,2]
[400176187,1767170045788,500.0,0.00043196,120]
[400176188,1767170045833,414.0,0.00043196,120]
[400176189,1767170046511,500.0,0.00043196,120]
[400176190,1767170047155,500.0,0.00043196,120]
[400176191,1767170047795,500.0,0.00043196,120]
[400176192,1767170048292,250.0,0.00043196,120]
[400176193,1767170048396,500.0,0.00043196,120]
[400176195,1767170048904,250.0,0.00043196,120]
[400176196,1767170049029,500.0,0.00043196,120]
[400176197,1767170049528,250.0,0.00043196,120]
[400176198,1767170049633,500.0,0.00043196,120]
[400176201,1767170050128,250.0,0.00043196,120]
[400176202,1767170050248,500.0,0.00043196,120]
[400176203,1767170050877,500.0,0.00043196,120]
[400176204,1767170051233,250.0,0.00043196,120]
[400176207,1767170051493,500.0,0.00043196,120]
[400176208,1767170051890,250.0,0.00043196,120]
[400176209,1767170052116,500.0,0.00043196,120]
[400176210,1767170052738,500.0,0.00043196,120]
[400176211,1767170053377,500.0,0.00043196,120]
[400176212,1767170054850,3435.97058763,0.00012785,2]
[400176213,1767170054877,2942.90959228,0.00012785,2]
[400176216,1767170056014,1000.0,0.00043196,120]
[400176217,1767170056618,1000.0,0.00043196,120]
[400176220,1767170057217,1000.0,0.00043196,120]
[400176221,1767170057870,151.0,0.00043196,50]
[400176222,1767170057995,1000.0,0.00043196,120]
[400176223,1767170058041,151.0,0.00043196,50]
[400176224,1767170058506,151.0,0.00043196,50]
[400176225,1767170058620,1000.0,0.00043196,120]
[400176227,1767170059288,1000.0,0.00043196,120]
[400176228,1767170059515,151.0,0.00043196,50]
[400176229,1767170059623,500.0,0.00043196,120]
[400176230,1767170059836,151.0,0.00043196,50]
[400176231,1767170059889,250.0,0.00043196,120]
[400176232,1767170059936,1000.0,0.00043196,120]
[400176233,1767170060160,151.0,0.00043196,50]
[400176234,1767170060223,151.0,0.00043196,50]
[400176235,1767170060516,500.0,0.00043196,120]
[400176237,1767170060565,250.0,0.00043196,120]
[400176239,1767170060611,151.0,0.00043196,50]
[400176240,1767170060656,1000.0,0.00043196,120]
[400176241,1767170060700,151.0,0.00043196,50]
[400176242,1767170060844,151.0,0.00043196,50]
[400176243,1767170060890,500.0,0.00043196,120]
[400176244,1767170061086,250.0,0.00043196,120]
[400176245,1767170061199,151.0,0.00043196,50]
[400176246,1767170061277,171.0,1.18e-06,2]
[400176247,1767170061511,151.0,0.00043196,50]
[400176248,1767170061708,250.0,0.00043196,120]
[400176249,1767170061820,214.666632,0.00043196,50]
[400176250,1767170061921,500.0,0.00043196,120]
[400176251,1767170062320,250.0,0.00043196,120]
[400176253,1767170062743,500.0,0.00043196,120]
[400176254,1767170062923,250.0,0.00043196,120]
[400176255,1767170063358,500.0,0.00043196,120]
[400176256,1767170063541,250.0,0.00043196,120]
[400176257,1767170063966,500.0,0.00043196,120]
[400176260,1767170064152,250.0,0.00043196,120]
[400176261,1767170064601,500.0,0.00043196,120]
[400176262,1767170065534,250.0,0.00043196,120]
[400176263,1767170065876,410.10503281,0.00043196,120]
[400176267,1767170066154,250.0,0.00043196,120]
[400176268,1767170066814,250.0,0.00043196,120]
[400176269,1767170067427,250.0,0.00043196,120]
[400176270,1767170068175,250.0,0.00043196,120]
[400176271,1767170068626,250.0,0.00043196,120]
[400176272,1767170069248,250.0,0.00043196,120]
[400176273,1767170069854,250.0,0.00043196,120]
[400176275,1767170070435,250.0,0.00043196,120]
[400176276,1767170071062,250.0,0.00043196,120]
[400176277,1767170071690,250.0,0.00043196,120]
[400176279,1767170072299,250.0,0.00043196,120]
[400176280,1767170072897,250.0,0.00043196,120]
[400176284,1767170079107,5855.8022643,0.00012785,2]
[400176290,1767170087055,162.25939593,0.00012785,2]
[400176298,1767170101211,300.0,0.00012884,2]
[400176299,1767170101250,568.03874749,0.00012884,2]
[400176300,1767170101273,631.96125251,0.00012884,2]
[400176308,1767170111233,257.83679277,0.00043196,120]
[400176309,1767170113480,-190.35435228,0.00012885,2]
[400176310,1767170119263,-309.64564772,0.00012885,2]
[400176311,1767170119296,-51.34227616,0.00012885,2]
[400176315,1767170122565,-182.06787261,0.00012885,2]
[400176316,1767170123629,179.28,0.0001201,2]
[400176317,1767170124462,627.18626663,0.00043196,120]
[400176318,1767170124544,-272.64371643,0.00012885,2]
[400176319,1767170127236,-236.00361132,0.00012885,2]
[400176320,1767170130364,-257.79369329,0.00012885,2]
[400176321,1767170132332,-168.32198253,0.00012885,2]
[400176322,1767170133791,-164.77834246,0.00012885,2]
[400176325,1767170135956,-259.76001502,0.00012885,2]
[400176326,1767170138874,151.0,0.00043196,50]
[400176327,1767170138911,-613.87335267,0.00012885,2]
[400176328,1767170139168,151.0,0.00043196,50]
[400176329,1767170139460,151.0,0.00043196,50]
[400176330,1767170139764,151.0,0.00043196,50]
[400176331,1767170140045,151.0,0.00043196,50]
[400176332,1767170140387,151.0,0.00043196,50]
[400176336,1767170161381,300.0,0.00012884,2]
[400176337,1767170162764,150.0,0.00012884,2]
[400176338,1767170163937,500.0,0.00043196,120]
[400176339,1767170165902,158.86171974,0.00012884,2]
[400176340,1767170166266,250.0,0.00012884,2]
[400176341,1767170171399,161.919396,0.00043196,50]
[400176342,1767170181065,500.0,0.00012884,2]
[400176343,1767170181116,451.96042814,0.00012884,2]
[400176345,1767170186707,-156.79467377,0.00012885,2]
[400176346,1767170187989,198.54832305,0.00012884,2]
[400176347,1767170188804,-194.68571787,0.00012885,2]
[400176348,1767170190216,-211.84096424,0.00012885,2]
[400176349,1767170196594,277.24771446,0.00012884,2]
[400176351,1767170221253,300.0,0.00012884,2]
[400176352,1767170224937,620.0,0.00043196,120]
[400176355,1767170231252,151.0,0.00043196,50]
[400176357,1767170232791,207.4,0.00043196,120]
[400176360,1767170235423,200.0,0.00043196,120]
[400176363,1767170241343,1500.0,0.00043196,120]
[400176364,1767170242319,301.03139788,0.00043196,120]
[400176366,1767170242975,151.0,0.00043196,50]
[400176367,1767170244719,1088.944,0.00012785,2]
[400176368,1767170245648,563.321356,0.0001282,2]
[400176369,1767170246710,-200.52857506,0.00012885,2]
[400176371,1767170248779,-178.41,0.00012885,2]
[400176378,1767170256326,4949.8852061,0.00012785,2]
[400176379,1767170256351,10000.01,0.00012785,2]
[400176380,1767170256375,173.61191646,0.00012785,2]
[400176385,1767170282623,168.03937799,0.00012785,2]
[400176386,1767170288067,151.0,0.00043196,50]
[400176387,1767170288385,151.0,0.00043196,50]
[400176388,1767170288672,151.0,0.00043196,50]
[400176389,1767170288992,151.0,0.00043196,50]
[400176390,1767170289321,151.0,0.00043196,50]
[400176391,1767170289622,151.0,0.00043196,50]
[400176392,1767170289962,151.0,0.00043196,50]
[400176393,1767170290270,151.0,0.00043196,50]
[400176394,1767170290768,151.0,0.00043196,50]
[400176395,1767170290885,151.0,0.00043196,50]
[400176396,1767170291188,151.0,0.00043196,50]
[400176397,1767170291481,151.0,0.00043196,50]
[400176398,1767170291880,151.0,0.00043196,50]
[400176399,1767170292178,151.226588,0.00043196,50]
[400176405,1767170342896,150.0,0.00012884,2]
[400176409,1767170379393,2500.0,0.00012785,2]
[400176410,1767170380716,570.46712288,0.00012867,2]
[400176411,1767170381988,-220.54331013,0.00012885,2]
[400176412,1767170383658,-195.0,0.00012885,2]
[400176413,1767170385282,-448.49237684,0.00012885,2]
[400176414,1767170387412,-195.0,0.00012885,2]
[400176415,1767170389646,-417.26014263,0.00012885,2]
[400176416,1767170401241,300.0,0.00012884,2]
[400176417,1767170401279,1200.0,0.00012884,2]
[400176418,1767170412274,-169.02062467,0.00012885,2]
[400176419,1767170436576,151.0,0.00043201,50]
[400176420,1767170437117,151.0,0.00043201,50]
[400176421,1767170437422,151.0,0.00043201,50]
[400176422,1767170437934,151.0,0.00043201,50]
[400176423,1767170462231,500.0,0.00043201,120]
[400176424,1767170483815,5112.49852709,0.00043201,120]
[400176425,1767170493263,1292.622,0.00012627,2]
[400176426,1767170493305,162.435,0.00012627,2]
[400176428,1767170510793,1043.2667,0.00012785,2]
[400176430,1767170511241,2439.56788267,0.00012838,2]
[400176431,1767170511266,2300.76318184,0.00012838,2]
[400176436,1767170516941,1476.2959,0.00012785,2]
[400176438,1767170521330,300.0,0.00012884,2]
[400176441,1767170522354,150.0,0.00012884,2]
[400176442,1767170523119,1152.9363,0.00012785,2]
[400176448,1767170530756,541.66005259,0.00043201,120]
[400176450,1767170532954,177.41188145,0.00012838,2]
[400176452,1767170535188,1886.1374,0.00012785,2]
[400176453,1767170536036,227.16478493,0.00012838,2]
[400176470,1767170593904,1309.0356,0.00012785,2]
[400176471,1767170599176,236.2092,0.00012785,2]
[400176472,1767170606771,-178.01383172,0.00012885,2]
[400176473,1767170609229,-361.80268287,0.00012885,2]
[400176474,1767170611351,-171.71890271,0.00012885,2]
[400176475,1767170612891,-187.80115239,0.00012885,2]
[400176476,1767170615061,-328.45095681,0.00012885,2]
[400176478,1767170623041,784.05575178,0.0001282,2]
[400176479,1767170623066,432.37794322,0.0001282,2]
[400176481,1767170641209,300.0,0.00012884,2]
[400176482,1767170666773,-302.0,0.00012885,2]
[400176483,1767170667603,429.5489,0.00012785,2]
[400176484,1767170676605,8838.08315678,0.00012812,2]
[400176485,1767170676634,5427.52288849,0.00012812,2]
[400176486,1767170677416,-174.56802001,0.00012885,2]
[400176487,1767170680281,-151.69,0.00012885,2]
[400176488,1767170682711,-464.24425929,0.00012885,2]
[400176489,1767170686003,-189.2477207,0.00012885,2]
[400176490,1767170689287,-195.0,0.00012885,2]
[400176491,1767170691432,-212.83960835,0.00012885,2]
[400176492,1767170694087,-402.91267095,0.00012885,2]
[400176493,1767170696135,500.0,0.00012884,2]
[400176494,1767170696184,561.33158834,0.00012884,2]
[400176495,1767170696230,-216.64421528,0.00012885,2]
[400176496,1767170699836,-224.98848957,0.00012885,2]
[400176497,1767170701245,1200.0,0.00012884,2]
[400176498,1767170701288,300.0,0.00012884,2]
[400176499,1767170701542,300.0,0.00012884,2]
[400176500,1767170702786,150.0,0.00012884,2]
[400176501,1767170707152,500.0,0.00012884,2]
[400176502,1767170707213,180.30111651,0.00012884,2]
[400176503,1767170708326,200.0,0.00012869,2]
[400176504,1767170708930,207.4,0.00012869,2]
[400176505,1767170709736,215.0738,0.00012869,2]
[400176506,1767170710158,223.0315306,0.00012869,2]
[400176507,1767170710765,35.34907606,0.00012869,2]
[400176508,1767170710790,195.93462117,0.00012869,2]
[400176509,1767170711407,-272.83521507,0.00012885,2]
[400176510,1767170711840,239.84119403,0.00012869,2]
[400176511,1767170712469,248.71531821,0.00012869,2]